bitfinex/quotes_ETHUSD_20251116
["timestamp","ask_amount","ask_price","bid_price","bid_amount"]
[1763254192823,0.2909,3161.0,3160.9,2.31143004]
[1763254192988,0.2909,3161.0,3160.9,4.70390072]
[1763254192989,0.7745,3161.0,3160.9,4.70390072]
[1763254193991,0.2909,3161.0,3160.9,4.70390072]
[1763254194200,0.002,3161.0,3160.9,4.70390072]
[1763254194519,0.002,3161.0,3160.9,5.15910072]
[1763254195420,0.002,3161.0,3160.9,5.64920072]
[1763254195583,0.002,3161.0,3160.9,6.86881651]
[1763254195980,0.002,3161.0,3160.9,6.37871651]
[1763254196183,0.002,3161.0,3160.9,6.86881651]
[1763254198314,0.002,3161.0,3160.9,7.36881651]
[1763254201632,0.002,3161.0,3160.9,6.86881651]
[1763254201933,0.002,3161.0,3160.9,10.25102164]
[1763254205063,0.002,3161.0,3160.9,10.75102164]
[1763254205857,0.002,3161.4,3161.0,1.5392448]
[1763254206056,0.002,3161.4,3161.3,7.7685302]
[1763254206354,0.002,3161.4,3161.3,8.2593302]
[1763254207063,0.002,3161.6,3161.4,1.5392448]
[1763254207265,0.002,3161.6,3161.5,1.88463455]
[1763254207435,0.002,3161.6,3161.5,4.4927846]
[1763254207822,1e-08,3161.7,3161.6,1.5392448]
[1763254208026,1e-08,3161.7,3161.6,6.36894993]
[1763254208455,0.1939,3164.0,3162.2,0.405504]
[1763254208662,0.78910844,3163.9,3163.6,1.5392448]
[1763254208954,0.4954,3163.9,3163.7,3.16085595]
[1763254209164,0.2709,3163.8,3163.7,3.16085595]
[1763254209319,0.2709,3163.8,3163.7,0.405504]
[1763254209524,0.7641,3163.8,3163.7,0.405504]
[1763254210823,0.7641,3163.8,3162.7,4.14630513]
[1763254211028,3.65626891,3163.7,3162.9,1.1337408]
[1763254211365,3.65626739,3163.7,3163.0,0.405504]
[1763254211545,0.4954,3163.6,3162.9,1.1337408]
[1763254211745,0.2709,3163.0,3162.9,1.5392448]
[1763254211926,0.2709,3163.0,3162.9,0.405504]
[1763254212123,0.7641,3163.0,3162.9,0.405504]
[1763254212331,3.16265897,3163.9,3163.0,0.405504]
[1763254212332,0.002,3163.9,3163.0,0.405504]
[1763254212655,0.4954,3163.5,3163.0,0.405504]
[1763254212850,0.2709,3163.1,3163.0,0.405504]
[1763254213244,0.2709,3163.1,3163.0,3.56705948]
[1763254214164,0.7574,3163.1,3162.8,7.45719526]
[1763254214468,0.2684,3162.9,3162.8,4.29543986]
[1763254214663,0.2684,3162.9,3162.8,4.70094386]
[1763254215163,0.7549,3162.9,3162.8,4.70094386]
[1763254216362,0.2684,3162.9,3162.8,4.70094386]
[1763254216734,0.4865,3163.1,3162.9,0.405504]
[1763254217145,0.2793,3163.0,3162.9,3.56715944]
[1763254217755,0.7638,3163.0,3162.9,3.56715944]
[1763254218135,0.2793,3163.0,3162.9,3.56715944]
[1763254219236,0.7638,3163.0,3162.9,3.56715944]
[1763254222372,0.7638,3163.0,3162.9,4.70090024]
[1763254224174,0.7638,3163.0,3162.5,3.38220513]
[1763254224346,0.1885,3162.6,3162.3,4.2959086]
[1763254224537,0.94958194,3163.6,3162.4,0.405504]
[1763254224736,0.94958194,3163.6,3162.5,0.4684]
[1763254224955,0.4865,3163.5,3162.6,1.57086435]
[1763254225246,0.4865,3163.5,3162.6,1.5392448]
[1763254226267,0.4865,3163.5,3162.8,0.405504]
[1763254227447,0.4865,3163.5,3162.9,6.32331088]
[1763254228886,0.4865,3163.5,3162.9,0.405504]
[1763254229186,0.4885,3163.5,3162.9,0.405504]
[1763254230983,0.4885,3163.5,3163.1,0.405504]
[1763254231380,0.2793,3163.2,3163.1,0.405504]
[1763254232083,0.4885,3163.5,3163.1,0.405504]
[1763254232267,0.4885,3163.5,3163.1,0.873904]
[1763254233392,0.29452757,3163.4,3163.2,3.16135558]
[1763254233690,0.29452757,3163.4,3163.2,6.32271116]
[1763254233885,0.4885,3163.5,3163.2,6.32271116]
[1763254234056,0.002,3163.5,3163.4,0.4684]
[1763254234255,0.002,3163.5,3163.4,0.405504]
[1763254234682,0.2835,3163.5,3163.4,0.405504]
[1763254236680,0.7658,3163.5,3163.4,1.5392448]
[1763254237002,0.7658,3163.5,3163.4,4.70040051]
[1763254239807,0.7658,3163.5,3163.4,5.55384784]
[1763254242179,0.2835,3163.5,3163.4,5.55384784]
[1763254244239,0.7658,3163.5,3163.4,5.55384784]
[1763254245701,0.2835,3163.5,3163.4,5.55384784]
[1763254246569,0.7658,3163.5,3163.4,5.55384784]
[1763254248268,0.2835,3163.5,3162.9,0.7658]
[1763254248548,0.4843,3163.4,3162.7,4.05211852]
[1763254248757,0.4843,3163.4,3163.0,1.5392448]
[1763254249528,0.4843,3163.4,3163.0,1.9894448]
[1763254249941,0.002,3163.5,3163.0,1.9894448]
[1763254250152,0.2815,3163.1,3162.5,7.37492328]
[1763254250352,0.29535397,3163.3,3162.6,0.405504]
[1763254250530,0.4843,3163.3,3162.5,6.32408681]
[1763254250730,0.4843,3163.3,3162.6,0.405504]
[1763254250932,0.4843,3163.3,3162.8,0.405504]
[1763254251130,0.002,3163.5,3162.8,0.405504]
[1763254251131,0.002,3163.5,3163.0,0.405504]
[1763254251576,0.4863,3163.5,3163.0,0.405504]
[1763254251867,0.4863,3163.5,3163.0,4.45762252]
[1763254252032,0.002,3163.5,3163.2,3.60191852]
[1763254252235,0.002,3163.5,3163.3,0.36019185]
[1763254252435,0.002,3163.5,3163.4,3.16115571]
[1763254252950,0.2835,3163.5,3163.4,3.16115571]
[1763254257890,0.002,3163.5,3163.4,4.01745971]
[1763254259296,0.002,3163.5,3163.4,7.61937823]
[1763254259488,0.002,3163.5,3163.4,8.77848046]
[1763254260887,0.2835,3163.5,3163.4,8.32768046]
[1763254261262,0.002,3163.5,3163.4,10.36242126]
[1763254262564,0.002,3163.5,3163.4,9.91222126]
[1763254265516,0.002,3163.5,3163.4,10.39212126]
[1763254266024,0.002,3163.5,3163.4,9.91222126]
[1763254266213,0.002,3163.5,3163.4,10.39212126]
[1763254267088,0.002,3163.5,3163.4,9.91222126]
[1763254267391,0.002,3163.5,3163.4,10.39212126]
[1763254269327,0.002,3163.5,3163.4,9.91222126]
[1763254269822,0.3099,3163.5,3163.4,9.46142126]
[1763254270398,0.002,3163.5,3163.4,9.92822126]
[1763254270702,0.002,3163.5,3163.4,9.46142126]
[1763254270905,0.002,3163.5,3163.4,9.92822126]
[1763254272287,0.002,3163.5,3163.4,9.46142126]
[1763254272947,0.002,3163.5,3163.4,9.95112126]
[1763254273869,0.002,3163.9,3163.5,1.5392448]
[1763254274164,0.002,3164.2,3164.1,0.405504]
[1763254274314,0.002,3164.2,3164.1,5.78796332]
[1763254274651,0.002,3164.2,3164.1,6.26526332]
[1763254275212,0.2866,3164.2,3163.9,1.70332091]
[1763254275425,0.002,3164.2,3164.0,4.00742252]
[1763254275845,0.002,3164.2,3164.1,3.65015636]
[1763254276476,0.002,3164.2,3164.1,5.84680116]
[1763254279312,0.002,3164.2,3164.1,6.34680116]
[1763254279926,0.1916,3165.5,3165.2,0.405504]
[1763254280343,0.2811,3165.3,3165.2,0.405504]
[1763254280681,0.4799,3165.8,3165.2,0.405504]
[1763254280986,0.1885,3166.0,3165.5,0.405504]
[1763254281136,0.1885,3166.0,3165.6,3.60191852]
[1763254281469,0.6684,3166.0,3165.6,3.60191852]
[1763254281641,0.2316,3165.7,3165.6,5.14116332]
[1763254281976,0.2316,3165.7,3165.6,8.30012212]
[1763254282471,0.2316,3165.7,3165.6,1.5392448]
[1763254282767,0.709,3165.7,3165.6,4.6982036]
[1763254282968,0.709,3165.7,3165.6,1.5392448]
[1763254283572,0.709,3165.7,3165.6,4.6982036]
[1763254284746,1.1337408,3167.3,3165.7,1.5392448]
[1763254284948,0.4799,3166.7,3165.7,1.1337408]
[1763254285152,0.4799,3166.7,3165.3,0.4773]
[1763254285153,3.60191852,3166.6,3165.3,3.60191852]
[1763254285465,0.0042,3165.4,3165.2,1.5392448]
[1763254285658,0.0042,3165.4,3165.2,2.05336113]
[1763254285864,0.1608,3165.7,3165.4,1.5392448]
[1763254286264,0.1608,3165.7,3165.6,1.1337408]
[1763254286635,0.4199,3165.7,3165.6,1.1337408]
[1763254286839,0.8976,3165.7,3165.6,1.1337408]
[1763254287235,0.8976,3165.7,3165.5,1.1337408]
[1763254287674,0.2613,3165.6,3165.5,1.5392448]
[1763254288671,0.2613,3165.6,3165.5,4.6983034]
[1763254288993,3.89578219,3165.6,3164.2,14.06028796]
[1763254289188,3.63448219,3165.6,3164.4,0.405504]
[1763254289488,0.2591,3164.5,3164.3,1.4240388]
[1763254289990,0.1916,3164.7,3164.4,0.895204]
[1763254290193,0.2613,3164.5,3164.4,0.405504]
[1763254290762,0.2613,3164.5,3164.4,4.69940154]
[1763254290961,0.2613,3164.5,3164.4,4.29389754]
[1763254291176,0.2613,3164.5,3164.4,4.69940154]
[1763254291574,0.2613,3164.5,3164.4,4.29389754]
[1763254291794,0.2613,3164.5,3164.4,1.5392448]
[1763254291981,0.7368,3164.5,3164.0,3.56599995]
[1763254292290,0.0048,3164.3,3164.2,0.405504]
[1763254292494,0.4799,3164.4,3164.0,3.16049595]
[1763254292658,0.2591,3164.1,3163.8,6.3215121]
[1763254292860,0.2591,3164.1,3164.0,0.405504]
[1763254293182,0.739,3164.1,3163.9,1.1337408]
[1763254293373,0.2591,3164.0,3163.9,1.1337408]
[1763254293573,0.2591,3164.0,3163.9,1.5392448]
[1763254294481,0.2591,3164.0,3163.9,1.1337408]
[1763254294791,0.7368,3164.0,3163.9,1.1337408]
[1763254294960,0.2591,3164.0,3163.9,4.29439695]
[1763254295165,0.1916,3164.7,3163.9,12.27338692]
[1763254295166,0.4964,3164.5,3163.9,12.27338692]
[1763254296887,0.4964,3164.5,3163.9,8.6714684]
[1763254297278,0.2427,3164.0,3163.9,4.29439695]
[1763254297678,0.2427,3164.0,3163.9,4.29539695]
[1763254298413,0.4939,3164.3,3163.9,7.9269531]
[1763254298613,0.688,3164.7,3163.9,7.9269531]
[1763254298781,0.4964,3164.6,3163.9,7.9269531]
[1763254299815,0.1916,3164.7,3164.0,0.405504]
[1763254300009,0.1916,3164.7,3164.1,0.03160456]
[1763254300378,0.1916,3164.7,3164.0,0.405504]
[1763254300578,0.688,3164.7,3164.0,0.405504]
[1763254301012,0.4964,3164.6,3164.0,0.405504]
[1763254301219,0.2427,3164.1,3164.0,4.69980105]
[1763254301514,0.2427,3164.1,3163.9,0.001]
[1763254301714,0.0024,3164.0,3163.9,0.001]
[1763254301883,0.0024,3164.0,3163.9,3.16165615]
[1763254302308,0.4964,3164.4,3163.9,3.63255615]
[1763254302511,0.4964,3164.4,3163.9,6.7932123]
[1763254302719,0.4964,3164.6,3164.0,2.21856603]
[1763254303315,0.4964,3164.6,3164.1,6.32091272]
[1763254303901,0.4964,3164.6,3164.0,3.56603806]
[1763254304135,0.0024,3164.1,3164.0,4.69977886]
[1763254304430,0.0024,3164.1,3164.0,4.29427486]
[1763254304735,0.4988,3164.1,3163.9,0.001]
[1763254304906,0.2403,3164.0,3163.9,0.001]
[1763254305437,0.7366,3164.0,3163.9,0.001]
[1763254306226,0.2403,3164.0,3163.9,0.001]
[1763254306739,0.7366,3164.0,3163.9,0.001]
[1763254310965,0.2403,3164.0,3163.9,0.001]
[1763254311968,0.4963,3164.2,3163.9,0.001]
[1763254312571,0.1934,3164.0,3163.9,0.001]
[1763254312864,0.1916,3164.7,3163.9,0.406504]
[1763254312865,0.4964,3164.6,3163.9,0.406504]
[1763254313070,0.4964,3164.6,3164.0,0.03160556]
[1763254313270,0.4964,3164.6,3163.9,1.336804]
[1763254313432,0.1916,3164.7,3164.0,0.49100556]
[1763254313630,0.1916,3164.7,3164.1,3.16045636]
[1763254313867,0.1916,3164.7,3164.0,0.93378437]
[1763254314168,0.688,3164.7,3164.0,4.09434062]
[1763254314370,0.1916,3165.0,3164.1,0.6554]
[1763254314568,4.14192636,3165.0,3164.1,1.75720495]
[1763254314868,0.29435363,3164.9,3164.1,1.75720495]
[1763254315067,0.29435363,3164.9,3164.1,2.43154575]
[1763254315244,0.48595363,3165.0,3164.2,0.4594]
[1763254315434,0.29435363,3164.9,3164.2,0.4594]
[1763254315631,0.29435363,3164.9,3164.3,3.16025661]
[1763254315850,0.79075363,3164.9,3164.3,3.16025661]
[1763254316050,0.4964,3164.9,3164.2,4.58839286]
[1763254316251,0.29481873,3164.8,3164.2,7.74874934]
[1763254317034,0.002,3164.7,3164.2,7.74874934]
[1763254317239,0.002,3164.7,3164.3,0.90784901]
[1763254317439,0.2387,3164.3,3164.2,0.405504]
[1763254317882,0.2387,3164.3,3164.2,3.56586048]
[1763254320382,0.29557359,3164.5,3164.2,4.03676048]
[1763254320586,0.002,3164.7,3164.2,7.65651696]
[1763254320783,0.2387,3164.3,3163.9,0.001]
[1763254321095,0.4964,3164.6,3164.0,1.5392448]
[1763254321275,0.79201659,3164.5,3164.0,1.5392448]
[1763254321483,0.29561659,3164.4,3164.0,2.32539821]
[1763254321664,0.002,3164.7,3164.0,2.78479821]
[1763254321993,0.4964,3164.5,3164.0,0.405504]
[1763254322155,0.2387,3164.1,3163.9,3.16161428]
[1763254322356,0.2387,3164.0,3163.9,0.001]
[1763254322689,0.53443296,3164.0,3163.9,0.001]
[1763254322903,1.02823296,3164.0,3163.9,0.001]
[1763254324471,4.18878921,3164.0,3163.9,0.001]
[1763254331216,5.32253001,3164.0,3163.9,0.001]
[1763254331616,5.44914334,3164.0,3163.9,0.001]
[1763254333216,1.1337408,3163.9,3163.5,0.001]
[1763254333415,3.56453417,3163.6,3163.5,0.001]
[1763254333617,0.48483296,3163.6,3163.5,0.001]
[1763254333818,0.97983296,3163.6,3163.5,0.001]
[1763254334457,0.30063296,3163.6,3163.5,0.001]
[1763254334615,0.79563296,3163.6,3163.5,0.001]
[1763254334820,3.95658883,3163.6,3163.5,0.001]
[1763254336730,3.45668883,3163.6,3163.5,0.001]
[1763254336956,0.29573296,3163.6,3163.5,0.4872]
[1763254337174,0.29573296,3163.8,3163.5,0.4872]
[1763254337459,3.34490235,3163.9,3163.5,0.4872]
[1763254337460,0.29479345,3163.7,3163.5,0.4872]
[1763254337630,0.29479345,3163.8,3163.5,0.4872]
[1763254337830,0.1842,3163.9,3163.5,0.4872]
[1763254337831,0.29479345,3163.7,3163.5,0.4872]
[1763254338051,0.29479345,3163.8,3163.5,0.4872]
[1763254338366,0.29479345,3163.7,3163.5,0.4872]
[1763254338653,3.34487281,3163.9,3163.5,0.4872]
[1763254338654,0.29479345,3163.8,3163.5,0.4872]
[1763254338859,0.29479345,3163.7,3163.5,0.4872]
[1763254339061,0.29479345,3163.8,3163.5,0.4872]
[1763254339224,0.29479345,3163.7,3163.5,0.4872]
[1763254339562,0.29479345,3163.8,3163.5,0.4872]
[1763254339759,0.29479345,3163.7,3163.5,0.9413]
[1763254340059,0.29479345,3163.8,3163.5,0.9413]
[1763254340267,0.29479345,3163.7,3163.6,0.4862]
[1763254340494,0.29479345,3163.8,3163.6,0.4862]
[1763254340782,0.29479345,3163.7,3163.6,0.4862]
[1763254340955,0.29479345,3163.8,3163.6,0.4862]
[1763254341155,0.29479345,3163.7,3163.6,0.4862]
[1763254341482,0.29479345,3163.8,3163.7,0.4541]
[1763254341777,0.29479345,3163.9,3163.5,0.001]
[1763254341976,3.45545695,3163.9,3163.5,0.4551]
[1763254342288,0.29479345,3163.8,3163.5,0.4551]
[1763254342876,0.2474,3163.6,3163.5,0.001]
[1763254343382,3.90085587,3163.6,3163.5,0.001]
[1763254343578,4.19564932,3163.6,3163.5,0.001]
[1763254343779,1.03469345,3163.6,3163.5,0.001]
[1763254343969,0.54219345,3163.6,3163.5,0.001]
[1763254344644,3.70314932,3163.6,3163.5,0.001]
[1763254345284,0.29479345,3163.6,3163.5,0.4872]
[1763254346083,3.45574932,3163.6,3163.5,0.4872]
[1763254346270,3.45574932,3163.6,3163.5,0.001]
[1763254346271,4.19564932,3163.6,3163.5,0.001]
[1763254347184,3.70554932,3163.6,3163.5,0.001]
[1763254351193,0.29479345,3163.6,3163.5,0.4872]
[1763254351772,0.29479345,3163.6,3163.5,0.9413]
[1763254353668,3.70314932,3163.6,3163.5,0.001]
[1763254353874,4.19564932,3163.6,3163.5,0.001]
[1763254354306,3.70314932,3163.6,3163.5,0.001]
[1763254360235,0.54219345,3163.6,3163.5,0.001]
[1763254360440,0.29479345,3163.6,3163.5,0.4832]
[1763254361500,4.19564932,3163.6,3163.5,0.001]
[1763254362725,3.70344932,3163.6,3163.5,0.001]
[1763254364830,4.19564932,3163.6,3163.5,0.001]
[1763254367720,3.70344932,3163.6,3163.5,0.001]
[1763254368815,4.19564932,3163.6,3163.5,0.001]
[1763254369737,7.79855763,3163.6,3163.5,0.001]
[1763254370958,3.70344932,3163.6,3163.5,0.001]
[1763254371136,3.45574932,3163.6,3163.5,0.4832]
[1763254371460,4.19564932,3163.6,3163.5,0.001]
[1763254380978,4.19746901,3163.6,3163.5,0.001]
[1763254383175,3.70766901,3163.6,3163.5,0.001]
[1763254383358,0.29661314,3163.6,3163.5,0.4832]
[1763254383554,0.29661314,3163.6,3163.5,0.9512]
[1763254384161,0.29661314,3163.6,3163.5,0.001]
[1763254385361,0.58721314,3163.6,3163.5,0.001]
[1763254385595,4.20106901,3163.6,3163.5,0.001]
[1763254386594,3.74816901,3163.6,3163.5,0.001]
[1763254388140,4.20106901,3163.6,3163.5,0.001]
[1763254388347,3.74816901,3163.6,3163.5,0.001]
[1763254388631,0.58721314,3163.6,3163.5,0.001]
[1763254388932,0.29661314,3163.6,3163.5,0.4714]
[1763254389147,3.45756901,3163.6,3163.5,0.9458]
[1763254389367,3.45756901,3163.6,3163.5,0.001]
[1763254389368,3.93896901,3163.6,3163.5,0.001]
[1763254389928,4.20296901,3163.6,3163.5,0.001]
[1763254393873,9.06624147,3163.6,3163.5,0.001]
[1763254394366,9.06624147,3163.6,3163.2,0.001]
[1763254394367,8.33955742,3163.3,3163.2,0.001]
[1763254394563,8.63877056,3163.3,3163.2,0.001]
[1763254394864,9.12077056,3163.3,3163.2,0.001]
[1763254395159,9.24741956,3163.3,3163.2,0.001]
[1763254396066,12.40867521,3163.3,3163.2,0.001]
[1763254397460,12.81417921,3163.3,3163.2,0.001]
[1763254397658,1.8765408,3163.2,3162.8,0.001]
[1763254397970,4.94024911,3162.9,3162.8,0.001]
[1763254398135,8.39851769,3162.9,3162.8,0.001]
[1763254398334,8.88051769,3162.9,3162.8,0.001]
[1763254398567,9.83048452,3162.9,3162.8,0.001]
[1763254402581,3.45826858,3162.9,3162.8,0.9875]
[1763254404375,3.45826858,3162.9,3162.8,0.4987]
[1763254404778,3.45826858,3162.9,3162.8,0.9875]
[1763254406856,0.29661314,3162.9,3162.8,0.9875]
[1763254407056,3.16141274,3163.2,3162.8,0.9875]
[1763254407283,0.29488158,3163.1,3162.9,0.4888]
[1763254407670,0.29688158,3163.1,3162.9,0.4888]
[1763254407985,0.29688158,3163.1,3163.0,0.6926]
[1763254408187,0.002,3163.1,3163.0,0.6926]
[1763254408348,0.29688158,3163.1,3163.0,0.4977]
[1763254408780,0.002,3163.1,3163.0,0.4977]
[1763254408980,7.27244542,3163.1,3162.8,0.001]
[1763254409182,0.29488158,3163.0,3162.8,0.001]
[1763254409450,4.08220831,3162.9,3162.8,0.001]
[1763254409675,3.89778989,3162.9,3162.8,0.001]
[1763254409885,3.89778989,3162.9,3162.8,0.4987]
[1763254411785,7.05944533,3162.9,3162.8,0.4987]
[1763254413481,7.53604533,3162.9,3162.8,0.001]
[1763254418596,7.72464533,3162.9,3162.8,0.001]
[1763254418892,7.31343568,3162.9,3162.8,0.001]
[1763254419065,6.83683568,3162.9,3162.8,0.001]
[1763254419264,7.31093568,3162.9,3162.8,0.001]
[1763254420310,6.83683568,3162.9,3162.8,0.4537]
[1763254420985,7.07063568,3162.9,3162.8,0.001]
[1763254421479,0.29488158,3162.9,3162.8,0.9477]
[1763254421819,3.45653702,3162.9,3162.8,0.4537]
[1763254421984,3.94953702,3162.9,3162.8,0.001]
[1763254426140,7.11119246,3162.9,3162.5,0.445]
[1763254426420,0.29488158,3162.8,3162.5,0.445]
[1763254426621,0.29488158,3162.7,3162.5,0.445]
[1763254426919,0.55348158,3162.6,3162.4,0.001]
[1763254427119,0.78548158,3162.5,3162.4,0.001]
[1763254427604,3.45693691,3162.5,3162.4,0.4537]
[1763254430037,3.94523691,3162.5,3162.4,0.001]
[1763254430225,4.20843691,3162.5,3162.4,0.001]
[1763254430737,3.94523691,3162.5,3162.4,0.001]
[1763254430900,4.20843691,3162.5,3162.4,0.001]
[1763254431335,3.94523691,3162.5,3162.4,0.001]
[1763254432838,3.45693691,3162.5,3162.4,0.001]
[1763254433035,3.45693691,3162.5,3162.4,0.4537]
[1763254433508,0.29488158,3162.5,3162.4,0.4537]
[1763254433821,3.45693691,3162.5,3162.4,0.9477]
[1763254436006,3.45824886,3162.5,3162.4,0.9477]
[1763254436206,3.45824886,3162.5,3162.4,0.4537]
[1763254436402,4.20774886,3162.5,3162.4,0.001]
[1763254437843,3.45824886,3162.5,3162.4,0.9477]
[1763254440344,3.45824886,3162.5,3162.4,0.4537]
[1763254440545,3.45824886,3162.5,3162.4,0.001]
[1763254440546,7.58804752,3162.5,3162.4,0.001]
[1763254441335,7.12084752,3162.5,3162.4,0.001]
[1763254442521,8.72178832,3162.5,3162.4,0.001]
[1763254443114,8.72378832,3162.5,3162.4,0.001]
[1763254443309,8.25658832,3162.5,3162.4,0.001]
[1763254443508,8.72378832,3162.5,3162.4,0.001]
[1763254444349,8.72375928,3162.5,3162.4,0.001]
[1763254447043,1.43190529,3162.5,3162.4,0.9684]
[1763254447242,4.59396062,3162.5,3162.4,0.9684]
[1763254450162,4.59396062,3162.5,3162.4,0.4913]
[1763254451762,8.26625928,3162.5,3162.4,0.001]
[1763254451953,8.72375928,3162.5,3162.4,0.001]
[1763254453246,8.26625928,3162.5,3162.4,0.001]
[1763254453571,4.59396062,3162.5,3162.4,0.4674]
[1763254454262,4.59396062,3162.5,3162.4,0.001]
[1763254454468,3.46021982,3162.5,3162.4,0.001]
[1763254455187,3.72801982,3162.5,3162.4,0.001]
[1763254455734,3.46021982,3162.5,3162.4,0.4674]
[1763254455937,0.29816449,3162.5,3162.4,0.9549]
[1763254460082,3.46021982,3162.5,3162.4,0.9549]
[1763254460486,0.29816449,3162.5,3162.4,0.9549]
[1763254460778,3.46021982,3162.5,3162.4,0.9549]
[1763254461783,0.29816449,3162.5,3162.4,0.9549]
[1763254462286,3.46021982,3162.5,3162.4,0.9549]
[1763254462652,0.29816449,3162.5,3162.4,0.9549]
[1763254462985,3.46021982,3162.5,3162.4,0.9549]
[1763254463790,0.29816449,3162.5,3162.4,0.9549]
[1763254468000,0.29816449,3162.5,3162.4,4.11705532]
[1763254468222,0.29816449,3162.5,3162.4,4.84498611]
[1763254470201,0.002,3162.5,3162.4,4.84498611]
[1763254470786,0.29816449,3162.5,3162.4,4.84498611]
[1763254470990,0.002,3162.5,3162.4,4.84498611]
[1763254471805,0.29801774,3162.5,3162.4,1.68283079]
[1763254472108,0.29801774,3162.5,3162.4,0.9549]
[1763254472260,0.002,3162.5,3162.4,0.9549]
[1763254472461,0.002,3162.5,3162.4,4.11705532]
[1763254472902,0.29801774,3162.5,3162.4,4.11705532]
[1763254473072,0.002,3162.5,3162.4,4.11705532]
[1763254473681,0.29801774,3162.5,3162.4,4.11705532]
[1763254473886,0.002,3162.5,3162.4,4.11705532]
[1763254474698,0.29801774,3162.5,3162.4,4.11705532]
[1763254474888,0.002,3162.5,3162.4,4.84499476]
[1763254475463,0.29801774,3162.5,3162.4,4.84499476]
[1763254475665,0.002,3162.5,3162.4,4.84499476]
[1763254476500,0.29801774,3162.5,3162.4,4.84499476]
[1763254476705,0.002,3162.5,3162.4,4.84499476]
[1763254477365,0.29801774,3162.5,3162.4,4.84499476]
[1763254477566,0.002,3162.5,3162.4,4.84499476]
[1763254478302,0.29801774,3162.5,3162.4,4.84499476]
[1763254478488,0.002,3162.5,3162.4,4.84499476]
[1763254479191,0.29801774,3162.5,3162.4,4.84499476]
[1763254479507,0.002,3162.5,3162.4,4.84499476]
[1763254481418,0.002,3162.5,3162.4,10.02023525]
[1763254481605,0.002,3162.5,3162.4,9.9886137]
[1763254489026,0.002,3162.5,3162.4,6.38423956]
[1763254490697,0.002,3162.5,3162.4,10.4886137]
[1763254490897,0.002,3162.9,3162.8,0.405504]
[1763254491098,0.002,3162.9,3162.8,5.63323649]
[1763254491328,0.002,3162.9,3162.8,6.7851395]
[1763254492095,0.002,3162.9,3162.8,7.2851395]
[1763254492522,0.002,3162.9,3162.8,11.1151395]
[1763254492828,0.002,3162.9,3162.8,14.2768949]
[1763254493197,0.002,3163.1,3163.0,0.905504]
[1763254493393,0.002,3163.1,3163.0,7.84548397]
[1763254493602,0.002,3163.1,3163.0,8.30218397]
[1763254494617,0.002,3163.1,3163.0,11.46373945]
[1763254502439,0.002,3163.1,3163.0,15.29373945]
[1763254502945,0.002,3163.1,3163.0,15.42029749]
[1763254503817,0.002,3163.1,3163.0,19.02467163]
[1763254505951,0.002,3163.1,3163.0,15.42029749]
[1763254506447,0.002,3163.1,3163.0,19.02467163]
[1763254506945,0.002,3163.1,3163.0,10.32716131]
[1763254507144,0.4756,3163.1,3163.0,6.03916131]
[1763254507347,0.002,3163.1,3163.0,6.89566531]
[1763254507753,0.002,3163.1,3163.0,6.49016131]
[1763254508129,0.002,3163.1,3163.0,10.96963945]
[1763254508633,0.002,3163.1,3163.0,10.09453545]
[1763254508839,0.002,3163.1,3163.0,10.50003945]
[1763254512550,0.4735,3163.1,3163.0,6.44466531]
[1763254514528,0.7443,3163.1,3163.0,3.56705948]
[1763254514926,0.7443,3163.1,3163.0,4.70080028]
[1763254516256,0.002,3163.1,3163.0,5.66271583]
[1763254516457,0.002,3163.1,3163.0,7.25707463]
[1763254520795,0.2744,3163.1,3163.0,6.32677463]
[1763254520967,0.7423,3163.1,3163.0,4.29529628]
[1763254521174,0.7423,3163.1,3162.9,1.1347408]
[1763254521361,0.4746,3163.0,3162.9,4.29637477]
[1763254522362,0.2724,3163.0,3162.9,4.29637477]
[1763254522562,0.2724,3163.0,3162.9,4.70187877]
[1763254523476,0.7403,3163.0,3162.9,4.70187877]
[1763254523678,0.7403,3163.0,3162.9,1.5402448]
[1763254523873,0.7403,3163.0,3162.9,4.29639624]
[1763254524054,0.7403,3163.0,3162.9,4.70190024]
[1763254528953,0.2724,3163.0,3162.9,4.70190024]
[1763254530385,0.7403,3163.0,3162.9,4.70190024]
[1763254531298,0.2724,3163.0,3162.9,4.70190024]
[1763254531794,0.002,3163.1,3162.9,8.79385568]
[1763254532108,0.002,3163.1,3163.0,0.4544]
[1763254532465,0.002,3163.1,3163.0,3.61595548]
[1763254533399,0.2744,3163.1,3163.0,3.16155548]
[1763254535702,0.7247,3163.1,3163.0,3.16155548]
[1763254536299,0.2744,3163.1,3163.0,3.16155548]
[1763254536601,0.7247,3163.1,3163.0,3.16155548]
[1763254537803,0.002,3163.1,3163.0,4.02325948]
[1763254538393,0.2938,3163.1,3163.0,3.56705948]
[1763254538977,0.002,3163.1,3163.0,4.02325948]
[1763254539302,0.2938,3163.1,3163.0,3.56705948]
[1763254549209,0.59041049,3163.1,3163.0,3.56705948]
[1763254550300,0.29861049,3163.1,3163.0,5.30471473]
[1763254550498,0.002,3163.1,3163.0,4.85461473]
[1763254551790,0.002,3163.1,3163.0,5.30471473]
[1763254552992,0.002,3163.1,3163.0,4.85461473]
[1763254556917,0.2938,3163.1,3163.0,1.23685925]
[1763254557113,0.7425,3163.1,3163.0,3.56705948]
[1763254558046,0.2938,3163.1,3163.0,3.56705948]
[1763254558944,0.002,3163.1,3163.0,4.02325948]
[1763254559139,0.002,3163.1,3163.0,3.56705948]
[1763254559645,0.002,3163.1,3163.0,4.02325948]
[1763254559944,0.002,3163.1,3163.0,5.30532471]
[1763254560324,0.002,3163.1,3163.0,4.39902471]
[1763254560527,0.2938,3163.1,3163.0,4.39902471]
[1763254561046,0.7425,3163.1,3163.0,3.16155548]
[1763254561211,1.03913986,3163.1,3163.0,3.16155548]
[1763254561411,0.29863986,3163.1,3163.0,3.16155548]